{"text_format":"1","workbook":"xlsx","n_sheets":10,"sheets":["POČETNA","1. SAŽETAK POKAZATELJA","2.  UKUPNI SKUPLJENI OTPAD","3. UKUPNI PROIZVEDENI OTPAD","4. SASTAV OTPADA","5. ODLAGANJE NA ODLAGALISTE","6. PONOVNO KORISCENJE OTPADA","7. TROŠK. SKUPLJ. I PRIJEV.","8. FINACIRANJE INVESTICIJA","9, NARATIVNE INFORMACIJE "],"not_rendered":{"charts":9,"images":0,"macros":1,"external_links":0,"defined_names":9,"comments":6,"pivot_tables":0},"unopened":[],"bounds":{"document_bytes":16777216,"sheet_cells":100000,"rows_first":2000,"rows_last":500,"rows_between":2000,"halvings":0,"cell_chars":16384,"cell_head_chars":4096},"cells_cut":0,"cells_raw":0,"read":"whole","date_system":"1900"}

{"sheet":"POČETNA","index":0,"n_rows":49,"n_cols":7,"rows_kept":49,"cut":false,"hidden":false,"merged":[[0,0,2,10],[14,6,14,9],[17,6,17,9],[7,5,14,5],[7,6,7,9],[8,6,8,9],[9,6,9,9],[10,6,10,9],[11,6,11,9],[12,6,12,9],[13,6,13,9]]}
["Važna napomena: Da bi SWIS model radio ispravno neophodno je pre unosa podataka aktivirati makroe (Macros)\nVažna napomena: Pri snimanju dokumenta koristiti opciju “Excel Macro-Enabled Workbook”\n"]
[]
[]
[]
[]
[]
[]
[null,null,null,null,null,"PODACI","2.  UKUPNI SKUPLJENI OTPAD"]
[null,null,null,null,null,null,"3. UKUPNI PROIZVEDENI OTPAD"]
[null,null,null,null,null,null,"4. SASTAV OTPADA"]
[null,null,null,null,null,null,"5. ODLAGANJE NA ODLAGALIŠTE"]
[null,null,null,null,null,null,"6. PONOVNO KORIŠĆENJE OTPADA"]
[null,null,null,null,null,null,"7. POKRIVANJE TROŠKOVA SKUPLJANJA I PRIJEVOZA"]
[null,null,null,null,null,null,"8. FINACIRANJE INVESTICIJA"]
[null,null,null,null,null,null,"9. NARATIVNE INFORMACIJE O UPRAVLJANJU OTPADOM"]
[]
[]
[null,null,null,null,null,"REZULTAT","1. SAŽETAK POKAZATELJA"]
[]
[]
[]
[]
[]
[]
[]
[]
[]
[]
[]
[]
[]
[]
[]
[]
[]
[]
[]
[]
[]
[]
[]
[]
[]
[]
[]
[]
[]
[]
[null,null,null,null,null,null,"Milisav Aleksic, freelance consultant, Belgrade, Serbia, milisav.aleksic@gmai.com "]

{"sheet":"1. SAŽETAK POKAZATELJA","index":1,"n_rows":63,"n_cols":6,"rows_kept":63,"cut":false,"hidden":false,"merged":[]}
[null,"Podaci za godinu",{"$f":"'2.  UKUPNI SKUPLJENI OTPAD'!E1","v":0}]
[null,{"$f":"'2.  UKUPNI SKUPLJENI OTPAD'!B2:F2","v":"primjer"}]
[null,"Područje u km2",{"$f":"IFERROR('2.  UKUPNI SKUPLJENI OTPAD'!C3,\"\")","v":0}]
[null,"Ukupna broj stanovnika",{"$f":"IFERROR('2.  UKUPNI SKUPLJENI OTPAD'!C4,\"\")","v":0}]
[null,"Ukupno kućanstava",{"$f":"IFERROR('2.  UKUPNI SKUPLJENI OTPAD'!C5,\"\")","v":0}]
[null,"SAŽETAK POKAZATELJA GOSPODARENJA KOMUNALNIM OTPADOM",null,"Raspon pokazatelja","od","do"]
["I","SKUPLJANJE I PRIJEVOZ KOMUNALNOG OTPADA"]
[1,{"$f":"'7. TROŠK. SKUPLJ. I PRIJEV.'!G5","v":"Ukupno opsluženih stanovnika/kućanstava"},{"$f":"IFERROR('7. TROŠK. SKUPLJ. I PRIJEV.'!I5,\"\")","v":""},"> 70%",0.7,1]
[2,"Pokrivenost uslugom u urbanim područjima",{"$f":"IFERROR('7. TROŠK. SKUPLJ. I PRIJEV.'!I6,\"\")","v":""},"> 90%",0.9,1]
[3,"Pokrivensot uslugom u ruralnim područjima",{"$f":"IFERROR('7. TROŠK. SKUPLJ. I PRIJEV.'!I7,\"\")","v":""},"> 60%",0.6,1]
[4,"Prosj. količina skupljenog otpada po kućanstvu (kg/dan)",{"$f":"IFERROR('2.  UKUPNI SKUPLJENI OTPAD'!J10,\"\")","v":""},"1,05 - 3,6kg",1.0499999999999998,3.5999999999999996]
[5,{"$f":"'3. UKUPNI PROIZVEDENI OTPAD'!B6","v":"Prosj. količina skupljenog otpada (per capita/kg/dan)"},{"$f":"IFERROR('3. UKUPNI PROIZVEDENI OTPAD'!C6,\"\")","v":""},"0,35 - 1,2kg",0.35,1.2]
[6,{"$f":"'7. TROŠK. SKUPLJ. I PRIJEV.'!B22","v":"Količina skupljenog otpada godišnje, zaposlenik/t"},{"$f":"IFERROR('7. TROŠK. SKUPLJ. I PRIJEV.'!C22,\"\")","v":""},"> 650 ton/Empl.",650,1600]
[7,{"$f":"'7. TROŠK. SKUPLJ. I PRIJEV.'!B23","v":"Stanovništvo koje prosječno opslužuje jedan zaposleni"},{"$f":"IFERROR('7. TROŠK. SKUPLJ. I PRIJEV.'!C23,\"\")","v":""},"> 1300 PE / Empl.",1300,7000]
[8,{"$f":"'7. TROŠK. SKUPLJ. I PRIJEV.'!B24","v":"Zaposlenici u gospodarenju otpadom na 1000 opsluženih stanovnika "},{"$f":"IFERROR('7. TROŠK. SKUPLJ. I PRIJEV.'!C24:D24,\"\")","v":""},"1 - 2 Empl/1000 PE",1,2]
[9,{"$f":"'7. TROŠK. SKUPLJ. I PRIJEV.'!B21","v":"Odnos zaposlenih u upravi  i operativi"},{"$f":"IFERROR('7. TROŠK. SKUPLJ. I PRIJEV.'!C21:D21,\"\")","v":""},null,14,25]
[10,{"$f":"'9, NARATIVNE INFORMACIJE '!C55","v":"Zbroj skupljenog otpada, volumen u m3"},{"$f":"'9, NARATIVNE INFORMACIJE '!H55","v":0},null,{"$f":"C18","v":""},{"$f":"C19","v":""}]
[11,"Tražena usluga u m³ po trenutnoj stopi skupljanja",{"$f":"IFERROR(('2.  UKUPNI SKUPLJENI OTPAD'!C10*'2.  UKUPNI SKUPLJENI OTPAD'!J10)/'2.  UKUPNI SKUPLJENI OTPAD'!G10/1000,\"\")","v":""}]
[12,"Tražena usluga u m³ po  stopi skupljanja od 100% ",{"$f":"IFERROR(('2.  UKUPNI SKUPLJENI OTPAD'!C5*'2.  UKUPNI SKUPLJENI OTPAD'!J10)/'2.  UKUPNI SKUPLJENI OTPAD'!G10/1000,\"\")","v":""}]
[13,"Raspon između tražene i pružene usluge po trenutnoj stopi skupljanja",{"$f":"IFERROR(C18/C17,\"\")","v":""},{"$f":"1:1","v":0},1,1]
[14,"Raspon između tražene i pružene usluge po stopi skupljanja manjoj od 100% ",{"$f":"IFERROR(C19/C17,\"\")","v":""},null,1,1]
["II","KOLIČINE KOMUNALNOG OTPADA"]
[15,{"$f":"'3. UKUPNI PROIZVEDENI OTPAD'!L9","v":"Procijenjena količina proizvedenog komunalnog otpada (t/god) "},{"$f":"IFERROR('3. UKUPNI PROIZVEDENI OTPAD'!L21,\"\")","v":0}]
[16,{"$f":"'2.  UKUPNI SKUPLJENI OTPAD'!H9","v":"Prosj. količina skupljenog otpada po kućanstvu (kg/dan)"},{"$f":"'2.  UKUPNI SKUPLJENI OTPAD'!H21","v":0}]
[17,"Omjer između otpada prikupljenog u urbanim i ruralnim krajevima",{"$f":"IFERROR('7. TROŠK. SKUPLJ. I PRIJEV.'!H6/'7. TROŠK. SKUPLJ. I PRIJEV.'!H7,\"\")","v":""}]
[18,{"$f":"'3. UKUPNI PROIZVEDENI OTPAD'!M9","v":"Procijenjeno nekontrolirano odlaganje otpada (t/god)"},{"$f":"IFERROR('3. UKUPNI PROIZVEDENI OTPAD'!M21,\"\")","v":0}]
[19,"Nekontrolirano odlaganje otpada u % od ukupno stvorenog  ",{"$f":"IFERROR('3. UKUPNI PROIZVEDENI OTPAD'!N21,\"\")","v":""}]
[20,"Nekontrolirano odlaganje otpada u % od ukupno skupljenog   ",{"$f":"'3. UKUPNI PROIZVEDENI OTPAD'!O21","v":0}]
["III","KOMUNALNI OTPAD ODLOŽEN NA ODLAGALIŠTE BEZ SEPARACIJE"]
[21,"Komunalni otpad odložen bez separacije na tradicionalnom odlagalištu u %",{"$f":"IFERROR('5. ODLAGANJE NA ODLAGALISTE'!F24,\"\")","v":""},null,0,0]
[22,"Komunalni otpad odložen bez separacije na kontroliranom odlagalištu u %",{"$f":"IFERROR('5. ODLAGANJE NA ODLAGALISTE'!H24,\"\")","v":""},null,1,1]
[23,"Komunalni otpad spaljen bez separacije u  %",{"$f":"IFERROR('5. ODLAGANJE NA ODLAGALISTE'!J24,\"\")","v":""},null,0,1]
["IV","KOMUNALNI OTPAD ODLOŽEN NAKON SEPARACIJE "]
[24,"Otpad odložen na odlagalište nakon separacije u % od ukupno skupljenog ",{"$f":"IFERROR('6. PONOVNO KORISCENJE OTPADA'!M24,\"\")","v":""},"65% - 35%",0.65,0.35]
[25,"Prosječni odloženi otpad kućanstva per capita/kg/dan",{"$f":"IFERROR(C12*C34,\"\")","v":""},"0,23 - 0,42kg/PE*day",{"$f":"E11*E34","v":0.68249999999999988},{"$f":"F11*F34","v":1.2599999999999998}]
[26,"Separiran u % od ukupno skupljenog ",{"$f":"IFERROR('6. PONOVNO KORISCENJE OTPADA'!F24+'6. PONOVNO KORISCENJE OTPADA'!H24,\"\")","v":""},"35% - 65%",{"$f":"100%-E34","v":0.35},{"$f":"100%-F34","v":0.65}]
[27,"Prosječni separirani otpad kućanstva per capita/kg/dan",{"$f":"IFERROR(C12*C36,\"\")","v":""},"0,12 - 0,78kg/PE*day",{"$f":"E36*E11","v":0.36749999999999994},{"$f":"F36*F11","v":2.34}]
["V","KOMUNALNI OTPAD OPORABLJEN NAKON SEPARACIJE "]
[28,"% od ukupno separiranog otpada, recikliranog, uključujući zalihe",{"$f":"IFERROR('6. PONOVNO KORISCENJE OTPADA'!R24,\"\")","v":""},"0% - 80%",0,0.8]
[29,"% od ukupno separiranog  otpada spaljenog uz ponovno korištenje energije ",{"$f":"IFERROR('6. PONOVNO KORISCENJE OTPADA'!T24,\"\")","v":""},"0% - 40%",0,0.4]
[30,"% od  ukupno separiranog, kompostiranog otpada",{"$f":"IFERROR('6. PONOVNO KORISCENJE OTPADA'!V24,\"\")","v":""},"0% - 65%",0,0.65]
["VI","KAPACITET UPORABE ODLAGALIŠTA"]
[31,{"$f":"'6. PONOVNO KORISCENJE OTPADA'!B30","v":"Aktualni kapacitet odlagališta "},{"$f":"'6. PONOVNO KORISCENJE OTPADA'!D30","v":0},"0 - 100%",0,1]
[32,{"$f":"'6. PONOVNO KORISCENJE OTPADA'!B33","v":"Rok trajanja odlagališta uz postojeću stopu iskorištavanja bez separacije ili spaljivanja"},{"$f":"IFERROR('6. PONOVNO KORISCENJE OTPADA'!D33,\"\")","v":""},"5 - 10 years",5,10]
[33,{"$f":"'6. PONOVNO KORISCENJE OTPADA'!B32","v":"Rok trajanja odlagališta  - godine preostale nakon separacije, recikliranja i oporavka"},{"$f":"IFERROR('6. PONOVNO KORISCENJE OTPADA'!D32,\"\")","v":""},"> 30 years",5,30]
[34,{"$f":"'6. PONOVNO KORISCENJE OTPADA'!B27","v":"Prosječno odloženi  otpad prije separacije t/dan "},{"$f":"IFERROR('6. PONOVNO KORISCENJE OTPADA'!D27,\"\")","v":""}]
[35,{"$f":"'6. PONOVNO KORISCENJE OTPADA'!B28","v":"Prosječno odloženi  otpad nakon separacije t/dan "},{"$f":"IFERROR('6. PONOVNO KORISCENJE OTPADA'!D28,\"\")","v":""}]
["VII","TRENUTNI TROŠKOVI, PLANIRANE INVESTICIJE I PROCJENA TROŠKOVA U KUNA"]
[null,"Za kn/t"]
[36,{"$f":"'7. TROŠK. SKUPLJ. I PRIJEV.'!B25","v":"Troškovi skupljanja i prijevoza otpada kuna/t"},{"$f":"IFERROR('7. TROŠK. SKUPLJ. I PRIJEV.'!C25,\"\")","v":""},null,10,45]
[37,{"$f":"'8. FINACIRANJE INVESTICIJA'!B68","v":"Procijenjeni porast troškova skupljanja i prijevoza kuna/t"},{"$f":"IFERROR('8. FINACIRANJE INVESTICIJA'!C68,\"\")","v":""}]
[38,{"$f":"'8. FINACIRANJE INVESTICIJA'!B67","v":"Procijenjeni troškovi skupljanja i prijevoza s porastom investicija u opremu kuna/t"},{"$f":"IFERROR('8. FINACIRANJE INVESTICIJA'!C67,\"\")","v":""}]
[39,{"$f":"'8. FINACIRANJE INVESTICIJA'!E67","v":"Procijenjeni porast troškova investicija u recikliranje, oporabu i odlaganje skupljenog otpada kuna/tquantities in kuna/ton"},{"$f":"IFERROR('8. FINACIRANJE INVESTICIJA'!F67,\"\")","v":""}]
[40,{"$f":"'8. FINACIRANJE INVESTICIJA'!E68","v":"Procijenjeni ukupni troškovi skupljanja, prijevoza, tretmana i odlaganja otpada s porastom investicija kuna/t "},{"$f":"IFERROR('8. FINACIRANJE INVESTICIJA'!F68,\"\")","v":""},null,60,120]
[null,"Za kućanstvo"]
[41,"Trenutna cijena skupljanja i prijevoza po kućanstvu na godinu/kn",{"$f":"IFERROR('2.  UKUPNI SKUPLJENI OTPAD'!J10*365/1000*C50,\"\")","v":""}]
[42,"Predviđeno povećanje cijene skupljanja i prijevoza po kućanstvu na godinu/kn",{"$f":"IFERROR(C58-C56,\"\")","v":""}]
[43,"Predviđena cijena skupljanja i prijevoza po kućanstvu na godinu/kn",{"$f":"IFERROR('2.  UKUPNI SKUPLJENI OTPAD'!J10*365/1000*'8. FINACIRANJE INVESTICIJA'!C67,\"\")","v":""}]
[44,"Predviđeno povećanje cijene investicija u reciklažu, obnovu i odlagališta za skupljenu količinu otpada po kućanstvu na godinu/kn",{"$f":"IFERROR('2.  UKUPNI SKUPLJENI OTPAD'!J10*365/1000*'8. FINACIRANJE INVESTICIJA'!F67,\"\")","v":""}]
[45,"Predviđena ukupna cijena gospodarenja otpadom (skupljanje, prijevoz, tretman i odlagališta) s investicijama po kućanstvu na godinu/kn",{"$f":"IFERROR('2.  UKUPNI SKUPLJENI OTPAD'!J10*365/1000*C54,\"\")","v":""}]
[]
[]
[null,"POČETNA"]

{"sheet":"2.  UKUPNI SKUPLJENI OTPAD","index":2,"n_rows":22,"n_cols":10,"rows_kept":22,"cut":false,"hidden":false,"merged":[[0,4,0,5],[1,1,1,5],[0,2,0,3],[21,1,23,2],[21,3,40,9],[6,2,6,9]]}
[null,"Općina","Razdoblje - godina"]
[null,"primjer"]
[null,"Područje u km2"]
[null,"Broj stanovnika  "]
[null,"Ukupno kućanstava"]
[null,"Prosječni broj članova kućanstva",{"$f":"C4/C5","v":{"$error":"#DIV/0!"}}]
[null,null,"Ukupni  broj opsluživanih proizvođača otpada"]
[null,null,1,2,2.1,3,4,5,null,6]
[null,"Vrste otpada","Broj opsluživanih proizvođača otpada","Količina otpada prikupljenog godišnje u odabranim jedinicama (stupac 2.1)","Izaberite jedinicu mjere\n","Postotak skupljenog otpada (t/m3)","Količina otpada skupljenog godišnje (t)","Prosj. količina skupljenog otpada po kućanstvu (kg/dan)",null,"Prosj. količina skupljenog otpada (per capita/kg/dan)"]
[1,"Mješoviti otpad iz kućanstava",null,null,null,{"$f":"I10/$H$21","v":{"$error":"#DIV/0!"}},null,{"$f":"IF(C10=0,D10=0,IF(D10=0,C10=0,D10*G10))","v":true},{"$f":"IFERROR(VALUE(H10),0)","v":0},{"$f":"((H10/C10)/365)*1000","v":{"$error":"#DIV/0!"}}]
[2,"Komunalni otpad s javnih površina",null,null,null,{"$error":"#DIV/0!"},null,{"$f":"IF(C11=0,D11=0,IF(D11=0,C11=0,D11*G11))","v":true},0,{"$f":"((H11/C11)/365)*1000","v":{"$error":"#DIV/0!"}}]
[3,"Krupni komunalni otpad",null,null,null,{"$error":"#DIV/0!"},null,true,0,{"$error":"#DIV/0!"}]
[4,"Gospodarski subjekti",null,null,null,{"$error":"#DIV/0!"},null,true,0,{"$error":"#DIV/0!"}]
[5,"Ustanove (općinske i ostale)",null,null,null,{"$error":"#DIV/0!"},null,true,0,{"$error":"#DIV/0!"}]
[6,"Industrijski neopasni otpad",null,null,null,{"$error":"#DIV/0!"},null,true,0,{"$error":"#DIV/0!"}]
[7,"Građevinski otpad",null,null,null,{"$error":"#DIV/0!"},null,true,0,{"$error":"#DIV/0!"}]
[8,"Poljoprivredni organski  otpad",null,null,null,{"$error":"#DIV/0!"},null,true,0,{"$error":"#DIV/0!"}]
[9,"Ostalo",null,null,null,{"$error":"#DIV/0!"},null,true,0,{"$error":"#DIV/0!"}]
[10,"Ostalo",null,null,null,{"$error":"#DIV/0!"},null,true,0,{"$error":"#DIV/0!"}]
[11,"Ostalo",null,null,null,{"$error":"#DIV/0!"},null,true,0,{"$error":"#DIV/0!"}]
[null,"UKUPNO",null,null,null,{"$f":"SUM(F10:F20)","v":{"$error":"#DIV/0!"}},null,{"$f":"SUM(H10:H20)","v":0}]
[null,"POČETNA",null,"Opaske:  "]

{"sheet":"3. UKUPNI PROIZVEDENI OTPAD","index":3,"n_rows":23,"n_cols":14,"rows_kept":23,"cut":false,"hidden":false,"merged":[[22,1,24,2],[22,3,42,14],[0,4,0,5],[0,7,0,8],[1,1,1,8],[0,2,0,3],[6,2,6,14]]}
[null,{"$f":"'2.  UKUPNI SKUPLJENI OTPAD'!B1","v":"Općina"},{"$f":"'2.  UKUPNI SKUPLJENI OTPAD'!C1","v":"Razdoblje - godina"},null,{"$f":"'2.  UKUPNI SKUPLJENI OTPAD'!E1:F1","v":0},null,null,{"$f":"'2.  UKUPNI SKUPLJENI OTPAD'!E1","v":0}]
[null,{"$f":"'2.  UKUPNI SKUPLJENI OTPAD'!B2","v":"primjer"}]
[null,"Ukupno stanovništvo ",{"$f":"'2.  UKUPNI SKUPLJENI OTPAD'!C4","v":0}]
[null,"Ukupno kućanstva",{"$f":"'2.  UKUPNI SKUPLJENI OTPAD'!C5","v":0}]
[null,"Prosječan broj članova kućanstva",{"$f":"C3/C4","v":{"$error":"#DIV/0!"}}]
[null,"Prosj. količina skupljenog otpada (per capita/kg/dan)",{"$f":"(L21/C3/365*1000)","v":{"$error":"#DIV/0!"}}]
[null,null,"UKUPNI PROIZVEDENI OTPAD"]
[null,null,1,2,null,null,2,3,4,5,6,7,8,9]
[null,"IZVORI OTPADA PREMA VRSTAMA","Ukupni broj postojećih  proizvođača otpada ","Ukupni broj postojećih  proizvođača otpada uključujući opsluživane ","Quantity of waste collected annually in m3","% of Total Collected","Average waste density conversion factor","Razlika između broja  postojećih i opsluživanih  proizvođača otpada","Količina otpada skupljena godišnje (t) ","Procijenjena pokrivenost uslugom - % količine","Procijenjena prosječna ukupna količina proizvedenog (a ne skupljenog)  otpada (t)","Procijenjena količina proizvedenog komunalnog otpada (t/god) ","Procijenjeno nekontrolirano odlaganje otpada (t/god)","Procijenjena količina nekontrolirano odloženog otpada  u postotku od ukupnog "]
[1,{"$f":"'2.  UKUPNI SKUPLJENI OTPAD'!B10","v":"Mješoviti otpad iz kućanstava"},{"$f":"'2.  UKUPNI SKUPLJENI OTPAD'!C10","v":0},null,{"$f":"IF('2.  UKUPNI SKUPLJENI OTPAD'!H10=FALSE,'2.  UKUPNI SKUPLJENI OTPAD'!D10=0,'2.  UKUPNI SKUPLJENI OTPAD'!D10)","v":0},{"$f":"E10/$E$21","v":{"$error":"#DIV/0!"}},{"$f":"'2.  UKUPNI SKUPLJENI OTPAD'!G10","v":0},{"$f":"D10-C10","v":0},{"$f":"E10*G10","v":0},{"$f":"C10/D10","v":{"$error":"#DIV/0!"}},{"$f":"IFERROR((I10*(1-J10))/J10,0)","v":0},{"$f":"IFERROR(IF(J10=0,K10,I10/J10),0)","v":0},{"$f":"L10-I10","v":0},{"$f":"M10/L10","v":{"$error":"#DIV/0!"}}]
[2,{"$f":"'2.  UKUPNI SKUPLJENI OTPAD'!B11","v":"Komunalni otpad s javnih površina"},{"$f":"'2.  UKUPNI SKUPLJENI OTPAD'!C11","v":0},null,{"$f":"IF('2.  UKUPNI SKUPLJENI OTPAD'!H11=FALSE,'2.  UKUPNI SKUPLJENI OTPAD'!D11=0,'2.  UKUPNI SKUPLJENI OTPAD'!D11)","v":0},{"$error":"#DIV/0!"},{"$f":"'2.  UKUPNI SKUPLJENI OTPAD'!G11","v":0},{"$f":"D11-C11","v":0},0,{"$f":"C11/D11","v":{"$error":"#DIV/0!"}},0,{"$f":"IFERROR(IF(J11=0,K11,I11/J11),0)","v":0},{"$f":"L11-I11","v":0},{"$error":"#DIV/0!"}]
[3,{"$f":"'2.  UKUPNI SKUPLJENI OTPAD'!B12","v":"Krupni komunalni otpad"},{"$f":"'2.  UKUPNI SKUPLJENI OTPAD'!C12","v":0},null,{"$f":"IF('2.  UKUPNI SKUPLJENI OTPAD'!H12=FALSE,'2.  UKUPNI SKUPLJENI OTPAD'!D12=0,'2.  UKUPNI SKUPLJENI OTPAD'!D12)","v":0},{"$error":"#DIV/0!"},{"$f":"'2.  UKUPNI SKUPLJENI OTPAD'!G12","v":0},0,{"$f":"E12*G12","v":0},{"$error":"#DIV/0!"},0,0,0,{"$error":"#DIV/0!"}]
[4,{"$f":"'2.  UKUPNI SKUPLJENI OTPAD'!B13","v":"Gospodarski subjekti"},{"$f":"'2.  UKUPNI SKUPLJENI OTPAD'!C13","v":0},null,{"$f":"IF('2.  UKUPNI SKUPLJENI OTPAD'!H13=FALSE,'2.  UKUPNI SKUPLJENI OTPAD'!D13=0,'2.  UKUPNI SKUPLJENI OTPAD'!D13)","v":0},{"$error":"#DIV/0!"},{"$f":"'2.  UKUPNI SKUPLJENI OTPAD'!G13","v":0},0,0,{"$error":"#DIV/0!"},0,0,0,{"$error":"#DIV/0!"}]
[5,{"$f":"'2.  UKUPNI SKUPLJENI OTPAD'!B14","v":"Ustanove (općinske i ostale)"},{"$f":"'2.  UKUPNI SKUPLJENI OTPAD'!C14","v":0},null,{"$f":"IF('2.  UKUPNI SKUPLJENI OTPAD'!H14=FALSE,'2.  UKUPNI SKUPLJENI OTPAD'!D14=0,'2.  UKUPNI SKUPLJENI OTPAD'!D14)","v":0},{"$error":"#DIV/0!"},{"$f":"'2.  UKUPNI SKUPLJENI OTPAD'!G14","v":0},0,0,{"$error":"#DIV/0!"},0,0,0,{"$error":"#DIV/0!"}]
[6,{"$f":"'2.  UKUPNI SKUPLJENI OTPAD'!B15","v":"Industrijski neopasni otpad"},{"$f":"'2.  UKUPNI SKUPLJENI OTPAD'!C15","v":0},null,{"$f":"IF('2.  UKUPNI SKUPLJENI OTPAD'!H15=FALSE,'2.  UKUPNI SKUPLJENI OTPAD'!D15=0,'2.  UKUPNI SKUPLJENI OTPAD'!D15)","v":0},{"$error":"#DIV/0!"},{"$f":"'2.  UKUPNI SKUPLJENI OTPAD'!G15","v":0},0,0,{"$error":"#DIV/0!"},0,0,0,{"$error":"#DIV/0!"}]
[7,{"$f":"'2.  UKUPNI SKUPLJENI OTPAD'!B16","v":"Građevinski otpad"},{"$f":"'2.  UKUPNI SKUPLJENI OTPAD'!C16","v":0},null,{"$f":"IF('2.  UKUPNI SKUPLJENI OTPAD'!H16=FALSE,'2.  UKUPNI SKUPLJENI OTPAD'!D16=0,'2.  UKUPNI SKUPLJENI OTPAD'!D16)","v":0},{"$error":"#DIV/0!"},{"$f":"'2.  UKUPNI SKUPLJENI OTPAD'!G16","v":0},0,0,{"$error":"#DIV/0!"},0,0,0,{"$error":"#DIV/0!"}]
[8,{"$f":"'2.  UKUPNI SKUPLJENI OTPAD'!B17","v":"Poljoprivredni organski  otpad"},{"$f":"'2.  UKUPNI SKUPLJENI OTPAD'!C17","v":0},null,{"$f":"IF('2.  UKUPNI SKUPLJENI OTPAD'!H17=FALSE,'2.  UKUPNI SKUPLJENI OTPAD'!D17=0,'2.  UKUPNI SKUPLJENI OTPAD'!D17)","v":0},{"$error":"#DIV/0!"},{"$f":"'2.  UKUPNI SKUPLJENI OTPAD'!G17","v":0},0,0,{"$error":"#DIV/0!"},0,0,0,{"$error":"#DIV/0!"}]
[9,{"$f":"'2.  UKUPNI SKUPLJENI OTPAD'!B18","v":"Ostalo"},{"$f":"'2.  UKUPNI SKUPLJENI OTPAD'!C18","v":0},null,{"$f":"IF('2.  UKUPNI SKUPLJENI OTPAD'!H18=FALSE,'2.  UKUPNI SKUPLJENI OTPAD'!D18=0,'2.  UKUPNI SKUPLJENI OTPAD'!D18)","v":0},{"$error":"#DIV/0!"},{"$f":"'2.  UKUPNI SKUPLJENI OTPAD'!G18","v":0},0,0,{"$error":"#DIV/0!"},0,0,0,{"$error":"#DIV/0!"}]
[10,{"$f":"'2.  UKUPNI SKUPLJENI OTPAD'!B19","v":"Ostalo"},{"$f":"'2.  UKUPNI SKUPLJENI OTPAD'!C19","v":0},null,{"$f":"IF('2.  UKUPNI SKUPLJENI OTPAD'!H19=FALSE,'2.  UKUPNI SKUPLJENI OTPAD'!D19=0,'2.  UKUPNI SKUPLJENI OTPAD'!D19)","v":0},{"$f":"E19/$E$21","v":{"$error":"#DIV/0!"}},{"$f":"'2.  UKUPNI SKUPLJENI OTPAD'!G19","v":0},{"$f":"D19-C19","v":0},{"$f":"E19*G19","v":0},{"$f":"C19/D19","v":{"$error":"#DIV/0!"}},0,0,{"$f":"L19-I19","v":0},{"$f":"M19/L19","v":{"$error":"#DIV/0!"}}]
[11,{"$f":"'2.  UKUPNI SKUPLJENI OTPAD'!B20","v":"Ostalo"},{"$f":"'2.  UKUPNI SKUPLJENI OTPAD'!C20","v":0},null,{"$f":"IF('2.  UKUPNI SKUPLJENI OTPAD'!H20=FALSE,'2.  UKUPNI SKUPLJENI OTPAD'!D20=0,'2.  UKUPNI SKUPLJENI OTPAD'!D20)","v":0},{"$error":"#DIV/0!"},{"$f":"'2.  UKUPNI SKUPLJENI OTPAD'!G20","v":0},0,0,{"$error":"#DIV/0!"},0,0,0,{"$error":"#DIV/0!"}]
[null,"TOTAL",null,null,{"$f":"SUM(E10:E20)","v":0},null,null,null,{"$f":"SUM(I10:I20)","v":0},null,{"$f":"SUM(K10:K20)","v":0},{"$f":"SUM(L10:L20)","v":0},{"$f":"SUM(M10:M20)","v":0},{"$f":"M21/L21","v":{"$error":"#DIV/0!"}}]
[]
[null,"POČETNA",null,"Opaske:  "]

{"sheet":"4. SASTAV OTPADA","index":4,"n_rows":24,"n_cols":9,"rows_kept":24,"cut":false,"hidden":false,"merged":[[1,1,1,5],[1,7,1,11],[0,1,0,2],[23,1,25,3],[23,5,38,13]]}
[null,{"$f":"'2.  UKUPNI SKUPLJENI OTPAD'!B1","v":"Općina"},null,{"$f":"'2.  UKUPNI SKUPLJENI OTPAD'!C1","v":"Razdoblje - godina"},{"$f":"'2.  UKUPNI SKUPLJENI OTPAD'!E1:F1","v":0}]
[null,{"$f":"'2.  UKUPNI SKUPLJENI OTPAD'!B2","v":"primjer"}]
[]
[null,1,2,3,4,5]
[null,"SASTAV  KOMUNALNOG OTPADA","Procijenjeni prosječni sadržaj ","Količina skupljenog otapada (t)","Količina proizvedenog otpada (t)","Nekontrolirana količina (t)",null,null,"Estimated Average Density t/m3"]
[1,"Vrtni otpad",null,{"$f":"'2.  UKUPNI SKUPLJENI OTPAD'!$H$21*C6","v":0},{"$f":"'3. UKUPNI PROIZVEDENI OTPAD'!$L$21*C6","v":0},{"$f":"E6-D6","v":0},null,null,0.1]
[2,"Ostali biorazgradivi otpad",null,{"$f":"'2.  UKUPNI SKUPLJENI OTPAD'!$H$21*C7","v":0},{"$f":"'3. UKUPNI PROIZVEDENI OTPAD'!$L$21*C7","v":0},{"$f":"E7-D7","v":0},null,null,0.14399999999999999]
[3,"Papir",null,{"$f":"'2.  UKUPNI SKUPLJENI OTPAD'!$H$21*C8","v":0},{"$f":"'3. UKUPNI PROIZVEDENI OTPAD'!$L$21*C8","v":0},0,null,null,0.33300000000000002]
[4,"Staklo",null,{"$f":"'2.  UKUPNI SKUPLJENI OTPAD'!$H$21*C9","v":0},{"$f":"'3. UKUPNI PROIZVEDENI OTPAD'!$L$21*C9","v":0},0,null,null,0.64]
[5,"Karton",null,{"$f":"'2.  UKUPNI SKUPLJENI OTPAD'!$H$21*C10","v":0},{"$f":"'3. UKUPNI PROIZVEDENI OTPAD'!$L$21*C10","v":0},0,null,null,0.57569999999999999]
[6,"Karton s voskom",null,{"$f":"'2.  UKUPNI SKUPLJENI OTPAD'!$H$21*C11","v":0},{"$f":"'3. UKUPNI PROIZVEDENI OTPAD'!$L$21*C11","v":0},0,null,null,0.32]
[7,"Karton s aluminijem",null,{"$f":"'2.  UKUPNI SKUPLJENI OTPAD'!$H$21*C12","v":0},{"$f":"'3. UKUPNI PROIZVEDENI OTPAD'!$L$21*C12","v":0},0,null,null,0.1]
[8,"Metal - Pakovanja I ostalo",null,{"$f":"'2.  UKUPNI SKUPLJENI OTPAD'!$H$21*C13","v":0},{"$f":"'3. UKUPNI PROIZVEDENI OTPAD'!$L$21*C13","v":0},0]
[9,"Metal - Limenke",null,{"$f":"'2.  UKUPNI SKUPLJENI OTPAD'!$H$21*C14","v":0},{"$f":"'3. UKUPNI PROIZVEDENI OTPAD'!$L$21*C14","v":0},0,null,null,0.17599999999999999]
[10,"Plastična pakovanja",null,{"$f":"'2.  UKUPNI SKUPLJENI OTPAD'!$H$21*C15","v":0},{"$f":"'3. UKUPNI PROIZVEDENI OTPAD'!$L$21*C15","v":0},0,null,null,0.129]
[11,"Plastične vrećice",null,{"$f":"'2.  UKUPNI SKUPLJENI OTPAD'!$H$21*C16","v":0},{"$f":"'3. UKUPNI PROIZVEDENI OTPAD'!$L$21*C16","v":0},0,null,null,0.224]
[12,"Čvrsta plastika",null,{"$f":"'2.  UKUPNI SKUPLJENI OTPAD'!$H$21*C17","v":0},{"$f":"'3. UKUPNI PROIZVEDENI OTPAD'!$L$21*C17","v":0},0,null,null,0.1]
[13,"Tekstil",null,{"$f":"'2.  UKUPNI SKUPLJENI OTPAD'!$H$21*C18","v":0},{"$f":"'3. UKUPNI PROIZVEDENI OTPAD'!$L$21*C18","v":0},0]
[14,"Koža",null,{"$f":"'2.  UKUPNI SKUPLJENI OTPAD'!$H$21*C19","v":0},{"$f":"'3. UKUPNI PROIZVEDENI OTPAD'!$L$21*C19","v":0},0]
[15,"Pelene",null,{"$f":"'2.  UKUPNI SKUPLJENI OTPAD'!$H$21*C20","v":0},{"$f":"'3. UKUPNI PROIZVEDENI OTPAD'!$L$21*C20","v":0},0]
[16,"Sitne čestice (<20mm)",null,{"$f":"'2.  UKUPNI SKUPLJENI OTPAD'!$H$21*C21","v":0},{"$f":"'3. UKUPNI PROIZVEDENI OTPAD'!$L$21*C21","v":0},0]
[null,"UKUPNO",{"$f":"SUM(C6:C21)","v":0},{"$f":"SUM(D6:D21)","v":0},{"$f":"SUM(E6:E21)","v":0},{"$f":"SUM(F6:F21)","v":0}]
[]
[null,"POČETNA",null,null,null,"Opaske:"]

{"sheet":"5. ODLAGANJE NA ODLAGALISTE","index":5,"n_rows":34,"n_cols":18,"rows_kept":34,"cut":false,"hidden":false,"merged":[[0,5,0,6],[1,1,1,3],[0,1,0,3],[25,1,25,2],[24,6,24,7],[3,1,3,10],[24,1,24,2],[25,5,31,10],[31,1,31,2],[0,8,0,25],[1,8,1,16],[33,1,34,2],[27,1,27,2],[26,1,26,2],[28,1,28,2],[29,1,29,2],[30,1,30,2]]}
[null,{"$f":"'2.  UKUPNI SKUPLJENI OTPAD'!B1","v":"Općina"},null,null,{"$f":"'2.  UKUPNI SKUPLJENI OTPAD'!C1","v":"Razdoblje - godina"},{"$f":"'4. SASTAV OTPADA'!E1","v":0},null,null,"Radni list se popunjava / koristi samo ako ne postoji razdvajanje otpada na području općine. Molimo provjeriti u priručniku"]
[null,{"$f":"'2.  UKUPNI SKUPLJENI OTPAD'!B2","v":"primjer"},null,null,null,null,null,null,"Obavlja li se odvajanje otpada u općini?",null,null,null,null,null,null,null,null,"No"]
[]
[null,"ODLOŽENI KOMUNALNI OTPAD I ROK TRAJANJA  ODLAGALIŠTA BEZ ORGANIZIRANOG  ODVAJANJA OTPADA  "]
[null,1,2,3,4,5,6,7,8,9,10]
[null,"SASTAV KOMUNALNOG OTPADA  ",{"$f":"'4. SASTAV OTPADA'!C5","v":"Procijenjeni prosječni sadržaj "},"Količine skupljenog otpada (t)","Skupljeni otpad odložen na tradicionalno odlagalište kao % ukupne vrijednosti ","Količine skupljenog otpada odloženog na tradicionalna odlagališta (t)"," Otpad skupljen i odložen na kontrolirana odlagališta kao % od ukupnog ","Količine skupljenog otpada odloženog na kontrolirana odlagališta (t)","Skupljeni otpad spaljen bez ponovnog iskorištenja energije kao % ukupne vrijednosti ","Skupljeni otpad spaljen bez ponovnog iskorištenja energije (t)","Ukupno odloženi otpad (4+6)"]
[1,{"$f":"'4. SASTAV OTPADA'!B6","v":"Vrtni otpad"},{"$f":"'4. SASTAV OTPADA'!C6","v":0},{"$f":"'2.  UKUPNI SKUPLJENI OTPAD'!$H$21*C7","v":0},null,{"$f":"D7*E7","v":0},null,{"$f":"D7*G7","v":0},null,{"$f":"D7*I7","v":0},{"$f":"E7+G7+I7","v":0}]
[2,{"$f":"'4. SASTAV OTPADA'!B7","v":"Ostali biorazgradivi otpad"},{"$f":"'4. SASTAV OTPADA'!C7","v":0},{"$f":"'2.  UKUPNI SKUPLJENI OTPAD'!$H$21*C8","v":0},null,{"$f":"D8*E8","v":0},null,{"$f":"D8*G8","v":0},null,0,0]
[3,{"$f":"'4. SASTAV OTPADA'!B8","v":"Papir"},{"$f":"'4. SASTAV OTPADA'!C8","v":0},{"$f":"'2.  UKUPNI SKUPLJENI OTPAD'!$H$21*C9","v":0},null,0,null,0,null,0,0]
[4,{"$f":"'4. SASTAV OTPADA'!B9","v":"Staklo"},{"$f":"'4. SASTAV OTPADA'!C9","v":0},{"$f":"'2.  UKUPNI SKUPLJENI OTPAD'!$H$21*C10","v":0},null,0,null,0,null,0,0]
[5,{"$f":"'4. SASTAV OTPADA'!B10","v":"Karton"},{"$f":"'4. SASTAV OTPADA'!C10","v":0},{"$f":"'2.  UKUPNI SKUPLJENI OTPAD'!$H$21*C11","v":0},null,0,null,0,null,0,0]
[6,{"$f":"'4. SASTAV OTPADA'!B11","v":"Karton s voskom"},{"$f":"'4. SASTAV OTPADA'!C11","v":0},{"$f":"'2.  UKUPNI SKUPLJENI OTPAD'!$H$21*C12","v":0},null,0,null,0,null,0,0]
[7,{"$f":"'4. SASTAV OTPADA'!B12","v":"Karton s aluminijem"},{"$f":"'4. SASTAV OTPADA'!C12","v":0},{"$f":"'2.  UKUPNI SKUPLJENI OTPAD'!$H$21*C13","v":0},null,0,null,0,null,0,0]
[8,{"$f":"'4. SASTAV OTPADA'!B13","v":"Metal - Pakovanja I ostalo"},{"$f":"'4. SASTAV OTPADA'!C13","v":0},{"$f":"'2.  UKUPNI SKUPLJENI OTPAD'!$H$21*C14","v":0},null,0,null,0,null,0,0]
[9,{"$f":"'4. SASTAV OTPADA'!B14","v":"Metal - Limenke"},{"$f":"'4. SASTAV OTPADA'!C14","v":0},{"$f":"'2.  UKUPNI SKUPLJENI OTPAD'!$H$21*C15","v":0},null,0,null,0,null,0,0]
[10,{"$f":"'4. SASTAV OTPADA'!B15","v":"Plastična pakovanja"},{"$f":"'4. SASTAV OTPADA'!C15","v":0},{"$f":"'2.  UKUPNI SKUPLJENI OTPAD'!$H$21*C16","v":0},null,0,null,0,null,0,0]
[11,{"$f":"'4. SASTAV OTPADA'!B16","v":"Plastične vrećice"},{"$f":"'4. SASTAV OTPADA'!C16","v":0},{"$f":"'2.  UKUPNI SKUPLJENI OTPAD'!$H$21*C17","v":0},null,0,null,0,null,0,0]
[12,{"$f":"'4. SASTAV OTPADA'!B17","v":"Čvrsta plastika"},{"$f":"'4. SASTAV OTPADA'!C17","v":0},{"$f":"'2.  UKUPNI SKUPLJENI OTPAD'!$H$21*C18","v":0},null,0,null,0,null,0,0]
[13,{"$f":"'4. SASTAV OTPADA'!B18","v":"Tekstil"},{"$f":"'4. SASTAV OTPADA'!C18","v":0},{"$f":"'2.  UKUPNI SKUPLJENI OTPAD'!$H$21*C19","v":0},null,0,null,0,null,0,0]
[14,{"$f":"'4. SASTAV OTPADA'!B19","v":"Koža"},{"$f":"'4. SASTAV OTPADA'!C19","v":0},{"$f":"'2.  UKUPNI SKUPLJENI OTPAD'!$H$21*C20","v":0},null,0,null,0,null,0,0]
[15,{"$f":"'4. SASTAV OTPADA'!B20","v":"Pelene"},{"$f":"'4. SASTAV OTPADA'!C20","v":0},{"$f":"'2.  UKUPNI SKUPLJENI OTPAD'!$H$21*C21","v":0},null,0,null,0,null,0,0]
[16,{"$f":"'4. SASTAV OTPADA'!B21","v":"Sitne čestice (<20mm)"},{"$f":"'4. SASTAV OTPADA'!C21","v":0},{"$f":"'2.  UKUPNI SKUPLJENI OTPAD'!$H$21*C22","v":0},null,0,null,0,null,0,0]
[null,"UKUPNO GODIŠNJE",{"$f":"'4. SASTAV OTPADA'!C22","v":0},{"$f":"SUM(D7:D22)","v":0},null,{"$f":"SUM(F7:F22)","v":0},null,{"$f":"SUM(H7:H22)","v":0},null,{"$f":"SUM(J7:J22)","v":0},{"$f":"F23+H23","v":0}]
[null,"% Od ukupnog",null,null,null,{"$f":"F23/D23","v":{"$error":"#DIV/0!"}},null,{"$f":"H23/D23","v":{"$error":"#DIV/0!"}},null,{"$f":"J23/D23","v":{"$error":"#DIV/0!"}},{"$f":"F24+H24+J24","v":{"$error":"#DIV/0!"}}]
[null,"Rok trajanja odlagališta (tradicionalnog ili kontroliranog)"]
[17,"Broj radnih dana odlagališta u godini",null,null,null,"Opaske:"]
[18,"Prosječni otpad odložen (t po danu) bez spaljivanja",null,{"$f":"D23/D26","v":{"$error":"#DIV/0!"}}]
[19,"Predviđeni kapacitet odlagališta (t)"]
[20,"Aktualni kapacitet odlagališta "]
[21,"Preostali kapacitet (t)",null,{"$f":"D28*(1-D29)","v":0}]
[22,"Rok trajanja odlagališta s aktualnim odlaganjem uz spaljivanje",null,{"$f":"D30/K23","v":{"$error":"#DIV/0!"}}]
[23,"Rok trajanja odlagališta s aktualnim odlaganjem bez spaljivanja",null,{"$f":"D30/D23","v":{"$error":"#DIV/0!"}}]
[]
[null,"POČETNA"]

{"sheet":"6. PONOVNO KORISCENJE OTPADA","index":6,"n_rows":42,"n_cols":25,"rows_kept":42,"cut":false,"hidden":true,"merged":[[41,4,61,19],[34,1,36,3],[25,16,25,24],[22,20,23,20],[22,18,23,18],[22,6,23,6],[22,8,23,8],[22,4,23,4],[4,0,5,1],[1,1,1,4],[24,22,24,24],[0,1,0,3],[23,23,23,24],[4,23,5,24],[22,23,22,24],[22,0,22,1],[3,3,3,22],[23,0,23,1],[22,16,23,16],[1,8,1,16],[0,8,0,24]]}
[null,{"$f":"'2.  UKUPNI SKUPLJENI OTPAD'!B1","v":"Općina"},null,null,{"$f":"'5. ODLAGANJE NA ODLAGALISTE'!E1","v":"Razdoblje - godina"},{"$f":"'5. ODLAGANJE NA ODLAGALISTE'!F1:G1","v":0},null,null,"Radni list se popunjava / koristi samo ako ne postoji razdvajanje otpada na području općine. Molimo provjeriti u priručniku"]
[null,{"$f":"'2.  UKUPNI SKUPLJENI OTPAD'!B2","v":"primjer"},null,null,null,null,null,null,"Obavlja li se odvajanje otpada u općini?",null,null,null,null,null,null,null,null,"No"]
[]
[null,null,null,"ORGANIZIRANO ODVOJENO SKUPLJANJE OTPADA – ODVOJENI KOMUNALNI OTPAD I ODLOŽENI OTPAD – PONOVNO ISKORIŠTAVANJE OTPADA, TRETMAN OTPADA I ROK TRAJANJA ODLAGALIŠTA"]
["SASTAV KOMUNALNOG OTPADA ",null,null,1,2,3,4,5,6,7,8,9,10,11,12,null,13,14,15,16,17,18,19]
[null,null,"Estimated Average Content ","Količine skupljenog otpada (t)","Komunalni otpad separiran po vrstama kao % ukupne vrijednosti ","Komunalni otpad separiran po vrstama (t)","Skupljeni otpad separiran na lokaciji odlagališta kao % ukupne vrijednosti","Skupljeni otpad separiran na lokaciji odlagališta (t) ","Skupljeni otpad u odnosu na ukupno skupljeni (%) ","Komunalni otpad separiran po vrstama (t)","Sastav komunalnog separiranog otpada (%) ","Skupljeni otpad odložen na odlagalište kao % ukupne vrijednosti","Skupljeni otpad odložen na odlagalište (t)","Sastav otpada na odlagalištu nakon separacije kao % ukupne vrijednosti","Separirani i odloženi otpad ukupno (%)  ",null,"Separirani otpad stavljen na tržište za reciklažu ili na lageru kao % ukupnog separiranog otpada ","Separirani otpad recikliran i stavljen na tržište (t)","Separirani otpad spaljen uz ponovno iskorištavanje energije kao % ukupnog separiranog otpada","Separirani otpad spaljen sa ili bez ponovnog iskorištavanje energije (t)","Otpad separiran i kompostiran od ukupno separiranog (%) ","Separirani otpad kompostiran (t)","Separirani otpad ukupno (%) "]
[1,{"$f":"'4. SASTAV OTPADA'!B6","v":"Vrtni otpad"},{"$f":"'4. SASTAV OTPADA'!C6","v":0},{"$f":"'2.  UKUPNI SKUPLJENI OTPAD'!$H$21*C7","v":0},null,{"$f":"D7*E7","v":0},null,{"$f":"D7*G7","v":0},{"$f":"E7+G7","v":0},{"$f":"F7+H7","v":0},{"$f":"J7/J$23","v":{"$error":"#DIV/0!"}},null,{"$f":"D7*L7","v":0},{"$f":"M7/M$23","v":{"$error":"#DIV/0!"}},{"$f":"E7+G7+L7","v":0},null,null,{"$f":"(F7+H7)*Q7","v":0},null,{"$f":"(H7+F7)*S7","v":0},null,{"$f":"(F7+H7)*U7","v":0},{"$f":"Q7+S7+U7","v":0},1,{"$f":"'4. SASTAV OTPADA'!B6","v":"Vrtni otpad"}]
[2,{"$f":"'4. SASTAV OTPADA'!B7","v":"Ostali biorazgradivi otpad"},{"$f":"'4. SASTAV OTPADA'!C7","v":0},{"$f":"'2.  UKUPNI SKUPLJENI OTPAD'!$H$21*C8","v":0},null,{"$f":"D8*E8","v":0},null,{"$f":"D8*G8","v":0},{"$f":"E8+G8","v":0},{"$f":"F8+H8","v":0},{"$f":"J8/J$23","v":{"$error":"#DIV/0!"}},null,{"$f":"D8*L8","v":0},{"$f":"M8/M$23","v":{"$error":"#DIV/0!"}},0,null,null,0,null,{"$f":"(H8+F8)*S8","v":0},null,{"$f":"(F8+H8)*U8","v":0},{"$f":"Q8+S8+U8","v":0},2,{"$f":"'4. SASTAV OTPADA'!B7","v":"Ostali biorazgradivi otpad"}]
[3,{"$f":"'4. SASTAV OTPADA'!B8","v":"Papir"},{"$f":"'4. SASTAV OTPADA'!C8","v":0},{"$f":"'2.  UKUPNI SKUPLJENI OTPAD'!$H$21*C9","v":0},null,0,null,0,0,0,{"$error":"#DIV/0!"},null,0,{"$error":"#DIV/0!"},0,null,null,0,null,0,null,0,0,3,{"$f":"'4. SASTAV OTPADA'!B8","v":"Papir"}]
[4,{"$f":"'4. SASTAV OTPADA'!B9","v":"Staklo"},{"$f":"'4. SASTAV OTPADA'!C9","v":0},{"$f":"'2.  UKUPNI SKUPLJENI OTPAD'!$H$21*C10","v":0},null,0,null,0,0,0,{"$error":"#DIV/0!"},null,0,{"$error":"#DIV/0!"},0,null,null,0,null,0,null,0,0,4,{"$f":"'4. SASTAV OTPADA'!B9","v":"Staklo"}]
[5,{"$f":"'4. SASTAV OTPADA'!B10","v":"Karton"},{"$f":"'4. SASTAV OTPADA'!C10","v":0},{"$f":"'2.  UKUPNI SKUPLJENI OTPAD'!$H$21*C11","v":0},null,0,null,0,0,0,{"$error":"#DIV/0!"},null,0,{"$error":"#DIV/0!"},0,null,null,0,null,0,null,0,0,5,{"$f":"'4. SASTAV OTPADA'!B10","v":"Karton"}]
[6,{"$f":"'4. SASTAV OTPADA'!B11","v":"Karton s voskom"},{"$f":"'4. SASTAV OTPADA'!C11","v":0},{"$f":"'2.  UKUPNI SKUPLJENI OTPAD'!$H$21*C12","v":0},null,0,null,0,0,0,{"$error":"#DIV/0!"},null,0,{"$error":"#DIV/0!"},0,null,null,0,null,0,null,0,0,6,{"$f":"'4. SASTAV OTPADA'!B11","v":"Karton s voskom"}]
[7,{"$f":"'4. SASTAV OTPADA'!B12","v":"Karton s aluminijem"},{"$f":"'4. SASTAV OTPADA'!C12","v":0},{"$f":"'2.  UKUPNI SKUPLJENI OTPAD'!$H$21*C13","v":0},null,0,null,0,0,0,{"$error":"#DIV/0!"},null,0,{"$error":"#DIV/0!"},0,null,null,0,null,0,null,0,0,7,{"$f":"'4. SASTAV OTPADA'!B12","v":"Karton s aluminijem"}]
[8,{"$f":"'4. SASTAV OTPADA'!B13","v":"Metal - Pakovanja I ostalo"},{"$f":"'4. SASTAV OTPADA'!C13","v":0},{"$f":"'2.  UKUPNI SKUPLJENI OTPAD'!$H$21*C14","v":0},null,0,null,0,0,0,{"$error":"#DIV/0!"},null,0,{"$error":"#DIV/0!"},0,null,null,0,null,0,null,0,0,8,{"$f":"'4. SASTAV OTPADA'!B13","v":"Metal - Pakovanja I ostalo"}]
[9,{"$f":"'4. SASTAV OTPADA'!B14","v":"Metal - Limenke"},{"$f":"'4. SASTAV OTPADA'!C14","v":0},{"$f":"'2.  UKUPNI SKUPLJENI OTPAD'!$H$21*C15","v":0},null,0,null,0,0,0,{"$error":"#DIV/0!"},null,0,{"$error":"#DIV/0!"},0,null,null,0,null,0,null,0,0,9,{"$f":"'4. SASTAV OTPADA'!B14","v":"Metal - Limenke"}]
[10,{"$f":"'4. SASTAV OTPADA'!B15","v":"Plastična pakovanja"},{"$f":"'4. SASTAV OTPADA'!C15","v":0},{"$f":"'2.  UKUPNI SKUPLJENI OTPAD'!$H$21*C16","v":0},null,0,null,0,0,0,{"$error":"#DIV/0!"},null,0,{"$error":"#DIV/0!"},0,null,null,0,null,0,null,0,0,10,{"$f":"'4. SASTAV OTPADA'!B15","v":"Plastična pakovanja"}]
[11,{"$f":"'4. SASTAV OTPADA'!B16","v":"Plastične vrećice"},{"$f":"'4. SASTAV OTPADA'!C16","v":0},{"$f":"'2.  UKUPNI SKUPLJENI OTPAD'!$H$21*C17","v":0},null,0,null,0,0,0,{"$error":"#DIV/0!"},null,0,{"$error":"#DIV/0!"},0,null,null,0,null,0,null,0,0,11,{"$f":"'4. SASTAV OTPADA'!B16","v":"Plastične vrećice"}]
[12,{"$f":"'4. SASTAV OTPADA'!B17","v":"Čvrsta plastika"},{"$f":"'4. SASTAV OTPADA'!C17","v":0},{"$f":"'2.  UKUPNI SKUPLJENI OTPAD'!$H$21*C18","v":0},null,0,null,0,0,0,{"$error":"#DIV/0!"},null,0,{"$error":"#DIV/0!"},0,null,null,0,null,0,null,0,0,12,{"$f":"'4. SASTAV OTPADA'!B17","v":"Čvrsta plastika"}]
[13,{"$f":"'4. SASTAV OTPADA'!B18","v":"Tekstil"},{"$f":"'4. SASTAV OTPADA'!C18","v":0},{"$f":"'2.  UKUPNI SKUPLJENI OTPAD'!$H$21*C19","v":0},null,0,null,0,0,{"$f":"F19+H19","v":0},{"$f":"J19/J$23","v":{"$error":"#DIV/0!"}},null,0,{"$error":"#DIV/0!"},0,null,null,0,null,0,null,0,0,13,{"$f":"'4. SASTAV OTPADA'!B18","v":"Tekstil"}]
[14,{"$f":"'4. SASTAV OTPADA'!B19","v":"Koža"},{"$f":"'4. SASTAV OTPADA'!C19","v":0},{"$f":"'2.  UKUPNI SKUPLJENI OTPAD'!$H$21*C20","v":0},null,0,null,0,0,0,{"$error":"#DIV/0!"},null,0,{"$error":"#DIV/0!"},0,null,null,0,null,0,null,0,0,14,{"$f":"'4. SASTAV OTPADA'!B19","v":"Koža"}]
[15,{"$f":"'4. SASTAV OTPADA'!B20","v":"Pelene"},{"$f":"'4. SASTAV OTPADA'!C20","v":0},{"$f":"'2.  UKUPNI SKUPLJENI OTPAD'!$H$21*C21","v":0},null,0,null,0,0,0,{"$error":"#DIV/0!"},null,0,{"$error":"#DIV/0!"},0,null,null,0,null,0,null,0,0,15,{"$f":"'4. SASTAV OTPADA'!B20","v":"Pelene"}]
[16,{"$f":"'4. SASTAV OTPADA'!B21","v":"Sitne čestice (<20mm)"},{"$f":"'4. SASTAV OTPADA'!C21","v":0},{"$f":"'2.  UKUPNI SKUPLJENI OTPAD'!$H$21*C22","v":0},null,0,null,0,0,0,{"$error":"#DIV/0!"},null,0,{"$error":"#DIV/0!"},0,null,null,0,null,0,null,0,0,16,{"$f":"'4. SASTAV OTPADA'!B21","v":"Sitne čestice (<20mm)"}]
["TOTAL",null,{"$f":"SUM(C7:C22)","v":0},{"$f":"SUM(D7:D22)","v":0},null,{"$f":"SUM(F7:F22)","v":0},null,{"$f":"SUM(H7:H22)","v":0},null,{"$f":"SUM(J7:J22)","v":0},{"$error":"#DIV/0!"},null,{"$f":"SUM(M7:M22)","v":0},{"$f":"SUM(N7:N22)","v":{"$error":"#DIV/0!"}},{"$f":"F23+H23+M23","v":0},null,"out of total waste separated ",{"$f":"SUM(R7:R22)","v":0},"out of total waste separated ",{"$f":"SUM(T7:T22)","v":0},"out of total waste separated ",{"$f":"SUM(V7:V22)","v":0},{"$f":"R23+T23+V23","v":0},"TOTAL"]
["% of TOTAL",null,null,null,null,{"$f":"F23/D23","v":{"$error":"#DIV/0!"}},null,{"$f":"H23/D23","v":{"$error":"#DIV/0!"}},null,{"$f":"J23/D23","v":{"$error":"#DIV/0!"}},null,null,{"$f":"M23/D23","v":{"$error":"#DIV/0!"}},null,{"$f":"O23/D23","v":{"$error":"#DIV/0!"}},null,null,{"$f":"R23/(F23+H23)","v":{"$error":"#DIV/0!"}},null,{"$f":"T23/(F23+H23)","v":{"$error":"#DIV/0!"}},null,{"$f":"V23/(F23+H23)","v":{"$error":"#DIV/0!"}},{"$f":"R24+T24+V24","v":{"$error":"#DIV/0!"}},"% of TOTAL"]
[null,{"$f":"'5. ODLAGANJE NA ODLAGALISTE'!B25:C25","v":"Rok trajanja odlagališta (tradicionalnog ili kontroliranog)"}]
[17,"Radno vrijeme odlagališta godišnje",null,null,null,null,null,null,null,null,null,null,null,null,null,null," "]
[18,"Prosječno odloženi  otpad prije separacije t/dan ",null,{"$f":"D23/D26","v":{"$error":"#DIV/0!"}}]
[19,"Prosječno odloženi  otpad nakon separacije t/dan ",null,{"$f":"M23/D26","v":{"$error":"#DIV/0!"}}]
[20,"Ukupno planirani kapacitet odlagališta u tonama"]
[21,{"$f":"'5. ODLAGANJE NA ODLAGALISTE'!B29","v":"Aktualni kapacitet odlagališta "}]
[22,"Preostali kapacitet  u tonama",null,{"$f":"D29*(1-D30)","v":0}]
[23,"Rok trajanja odlagališta  - godine preostale nakon separacije, recikliranja i oporavka",null,{"$f":"D31/M23","v":{"$error":"#DIV/0!"}}]
[24,"Rok trajanja odlagališta uz postojeću stopu iskorištavanja bez separacije ili spaljivanja",null,{"$f":"D31/D23","v":{"$error":"#DIV/0!"}}]
[]
[null,"POČETNA"]
[]
[]
[]
[]
[]
[]
[null,null,null,null,"Opaske:  "]

{"sheet":"7. TROŠK. SKUPLJ. I PRIJEV.","index":7,"n_rows":27,"n_cols":15,"rows_kept":27,"cut":false,"hidden":false,"merged":[[4,9,6,9],[18,2,18,3],[21,2,21,3],[23,2,23,3],[16,2,16,3],[20,2,20,3],[17,2,17,3],[7,6,7,9],[7,1,7,3],[19,2,19,3],[0,14,7,22],[1,8,1,11],[4,10,4,13],[26,3,37,9],[26,1,28,1],[22,2,22,3],[24,2,24,3],[0,6,0,7],[13,2,13,3],[14,2,14,3],[15,2,15,3],[12,2,12,3],[8,2,8,3],[9,2,9,3],[10,2,10,3],[11,2,11,3]]}
[null,{"$f":"'2.  UKUPNI SKUPLJENI OTPAD'!B1","v":"Općina"},null,{"$f":"'2.  UKUPNI SKUPLJENI OTPAD'!C1","v":"Razdoblje - godina"},{"$f":"'2.  UKUPNI SKUPLJENI OTPAD'!E1:F1","v":0},null,"POKRIVENOST USLUGOM ORGANIZIRANOG SKUPLJANJA OTPADA ",null,null,null,null,null,null,null,"Ovaj list pokazuje financijsku održivost usluge i indikativan je. Detaljnija analiza prihoda, rashoda i učinkovitosti potrebna je prije promjene tarife "]
[null,{"$f":"'2.  UKUPNI SKUPLJENI OTPAD'!B2","v":"primjer"},null,null,null,"a","Ukupno stanovnika ili kućanstava",{"$f":"SUM(H3:H4)","v":0},{"$f":"IF(H2='2.  UKUPNI SKUPLJENI OTPAD'!C5,\"Odgovara vrijednosti na listu br. 2 – Ukupno prikupljeni otpad\",\"Does not Match Value in Sheet 2-Total Waste Collected\")","v":"Odgovara vrijednosti na listu br. 2 – Ukupno prikupljeni otpad"}]
[null,{"$f":"'2.  UKUPNI SKUPLJENI OTPAD'!B3","v":"Područje u km2"},{"$f":"'2.  UKUPNI SKUPLJENI OTPAD'!C3","v":0},null,null,"b","urbano područje"]
[null,{"$f":"'2.  UKUPNI SKUPLJENI OTPAD'!B4","v":"Broj stanovnika  "},{"$f":"'2.  UKUPNI SKUPLJENI OTPAD'!C4","v":0},null,null,"c","ruralno područje"]
[null,{"$f":"'2.  UKUPNI SKUPLJENI OTPAD'!B5","v":"Ukupno kućanstava"},{"$f":"'2.  UKUPNI SKUPLJENI OTPAD'!C5","v":0},null,null,"d","Ukupno opsluženih stanovnika/kućanstava",{"$f":"SUM(H6:H7)","v":0},{"$f":"H5/H2","v":{"$error":"#DIV/0!"}},"Pokrivenost uslugom",{"$f":"IF(H5='2.  UKUPNI SKUPLJENI OTPAD'!C10,\"Odgovara vrijednosti na listu br. 2 – Ukupno prikupljeni otpad\",\"Does not Match Value in Sheet 2-Total Waste Collected\")","v":"Odgovara vrijednosti na listu br. 2 – Ukupno prikupljeni otpad"}]
[null,{"$f":"'2.  UKUPNI SKUPLJENI OTPAD'!B6","v":"Prosječni broj članova kućanstva"},{"$f":"'2.  UKUPNI SKUPLJENI OTPAD'!C6","v":{"$error":"#DIV/0!"}},null,null,"e","urbano područje",null,{"$f":"H6/H3","v":{"$error":"#DIV/0!"}}]
[null,null,null,null,null,"f","ruralno područje",null,{"$f":"H7/H4","v":{"$error":"#DIV/0!"}}]
[null,"OPĆI I FINANCIJSKI PODACI ",null,null,null,null,"CIJENE"]
[1,"Naziv i lokacija javnog komunalnog poduzeća  ",null,null,null,1,"Konačni opsluženi korisnici","Cijene obračunate za opsluženog korisnika (m2 ili m3, mjesečno, za kg/t ili dr.) kuna","Billling Units","Cijena potrebna za postizanje planiranih prihoda, kuna","Indeks porasta cijena"]
[2,"Glavne djelatnosti i usluge  ",null,null,null,2,null,null,null,{"$f":"H10/$C$12","v":{"$error":"#DIV/0!"}},{"$f":"J10/H10","v":{"$error":"#DIV/0!"}}]
[3,"Udio prihoda od gospodarenja otpadom u ukupnom prihodu",null,null,null,3,null,null,null,{"$error":"#DIV/0!"},{"$error":"#DIV/0!"}]
[4,"% naplaćenih usluga",null,null,null,4,null,null,null,{"$error":"#DIV/0!"},{"$error":"#DIV/0!"}]
[5,"Ukupni prihod od gospodarenja otpadom god/kuna",null,null,null,5,null,null,null,{"$error":"#DIV/0!"},{"$error":"#DIV/0!"}]
[6,"Ukupni troškovi (materijalni, plaće, amortizacija i ostali) vezani za skupljanje i prijevoz otapda god/kuna",null,null,null,6,null,null,null,{"$error":"#DIV/0!"},{"$error":"#DIV/0!"}]
[7,"Dobitak/gubitak god/kuna",{"$f":"C13-C14","v":0},null,null,7,null,null,null,{"$error":"#DIV/0!"},{"$error":"#DIV/0!"}]
[8,"Nužni porast prihoda za pokrivanje operativnih troškova ili prihoda povrh operativnih troškova ",{"$f":"C15/-C13","v":{"$error":"#DIV/0!"}},null,null,8,null,null,null,{"$error":"#DIV/0!"},{"$error":"#DIV/0!"}]
[9,"Pad troškova u odnosu na prihode",{"$f":"C15/C14","v":{"$error":"#DIV/0!"}},null,null,9,null,null,null,{"$error":"#DIV/0!"},{"$error":"#DIV/0!"}]
[10,"Ukupni skupljeni otpad t/god",{"$f":"'2.  UKUPNI SKUPLJENI OTPAD'!H21","v":0},null,null,10,null,null,null,{"$error":"#DIV/0!"},{"$error":"#DIV/0!"}]
[11,"Broj zaposlenika uključenih u upravljanje otpadom ",null,null,null,11,null,null,null,{"$error":"#DIV/0!"},{"$error":"#DIV/0!"}]
[12,"Broj radnika izravno uključenih u upravljanje otpadom  ",null,null,null,12,null,null,null,{"$error":"#DIV/0!"},{"$error":"#DIV/0!"}]
[13,"Odnos zaposlenih u upravi  i operativi",{"$f":"C20/(C19-C20)","v":{"$error":"#DIV/0!"}},null,null,13,null,null,null,{"$error":"#DIV/0!"},{"$error":"#DIV/0!"}]
[14,"Količina skupljenog otpada godišnje, zaposlenik/t",{"$f":"C18/C19","v":{"$error":"#DIV/0!"}},null,null,14,null,null,null,{"$error":"#DIV/0!"},{"$error":"#DIV/0!"}]
[15,"Stanovništvo koje prosječno opslužuje jedan zaposleni",{"$f":"(H5/C19)","v":{"$error":"#DIV/0!"}},null,null,15,null,null,null,{"$error":"#DIV/0!"},{"$error":"#DIV/0!"}]
[16,"Zaposlenici u gospodarenju otpadom na 1000 opsluženih stanovnika ",{"$f":"1000/C23","v":{"$error":"#DIV/0!"}},null,null,16,null,null,null,{"$error":"#DIV/0!"},{"$error":"#DIV/0!"}]
[17,"Troškovi skupljanja i prijevoza otpada kuna/t",{"$f":"C14/C18","v":{"$error":"#DIV/0!"}},null,null,17,null,null,null,{"$error":"#DIV/0!"},{"$error":"#DIV/0!"}]
[]
[null,"POČETNA",null,"Opaske:"]

{"sheet":"8. FINACIRANJE INVESTICIJA","index":8,"n_rows":72,"n_cols":10,"rows_kept":72,"cut":false,"hidden":false,"merged":[[3,1,3,9],[71,1,73,1],[64,3,66,3],[64,6,66,6],[59,1,59,5]]}
[null,{"$f":"'2.  UKUPNI SKUPLJENI OTPAD'!B1","v":"Općina"},null,{"$f":"'2.  UKUPNI SKUPLJENI OTPAD'!C1","v":"Razdoblje - godina"},{"$f":"'2.  UKUPNI SKUPLJENI OTPAD'!E1:F1","v":0}]
[null,{"$f":"'2.  UKUPNI SKUPLJENI OTPAD'!B2","v":"primjer"}]
[]
[null,"INVESTICIJE U OPREMU I SREDSTVA "]
[]
[null,"IME KOMUNALNOG PODUZEĆA ",1,2,3,4,5,6,7,8]
[null,"Vrsta opreme za skupljanje i prijevoz komunalnog otpada ","Postojeći broj jedinica u optjecaju","Planirana kupovina ","Cijena nove jedinice opreme kuna","Neophodne investicije kuna","Stopa amortizacije ","Godišnja amortizacija","Troškovi servisiranja zaduženja (god)","Amortizacija i zaduženja (god)"]
[1,"Kontejneri 120 l",null,null,null,{"$f":"D8*E8","v":0},null,{"$f":"F8*G8","v":0},null,{"$f":"H8+I8","v":0}]
[2,"Kontejneri  240 l",null,null,null,{"$f":"D9*E9","v":0},null,{"$f":"F9*G9","v":0},null,{"$f":"H9+I9","v":0}]
[3,"Kontejneri  660 l",null,null,null,{"$f":"D10*E10","v":0},null,{"$f":"F10*G10","v":0},null,{"$f":"H10+I10","v":0}]
[4,"Kontejneri  770 l",null,null,null,{"$f":"D11*E11","v":0},null,{"$f":"F11*G11","v":0},null,{"$f":"H11+I11","v":0}]
[5,"Kontejneri  1100 l",null,null,null,0,null,0,null,0]
[6,"Kontejneri na kotačima 3,5m3",null,null,null,0,null,0,null,0]
[7,"Kontejneri na kotačima 5m³",null,null,null,0,null,0,null,0]
[8,"Kontejneri na kotačima 7m³",null,null,null,0,null,0,null,0]
[9,"Kontejneri na kotačima 2,5",null,null,null,0,null,0,null,0]
[10,"Kontejneri na kotačima 5m³",null,null,null,0,null,0,null,0]
[11,"Kontejneri na kotačima 10m³",null,null,null,0,null,0,null,0]
[12,"Kontejneri na kotačima 25m³",null,null,null,0,null,0,null,0]
[13,"Kontejneri na kotačima 35m³",null,null,null,0,null,0,null,0]
[14,null,null,null,null,0,null,0,null,0]
[15,null,null,null,null,0,null,0,null,0]
[16,"Ostali kontejneri ",null,null,null,{"$f":"D23*E23","v":0},null,{"$f":"F23*G23","v":0},null,0]
[null,"Ukupno oprema za skupljanje otpada",{"$f":"SUM(C8:C23)","v":0},{"$f":"SUM(D8:D23)","v":0},null,{"$f":"SUM(F8:F23)","v":0},null,{"$f":"SUM(H8:H23)","v":0},{"$f":"SUM(I8:I23)","v":0},{"$f":"SUM(J8:J23)","v":0}]
[1,"Kamioni 8t",null,null,null,{"$f":"D25*E25","v":0},null,{"$f":"F25*G25","v":0},null,{"$f":"H25+I25","v":0}]
[2,"Kamioni 12t",null,null,null,{"$f":"D26*E26","v":0},null,{"$f":"F26*G26","v":0},null,{"$f":"H26+I26","v":0}]
[3,"Kamioni s rotirajućim mehanizmom",null,null,null,{"$f":"D27*E27","v":0},null,{"$f":"F27*G27","v":0},null,{"$f":"H27+I27","v":0}]
[4,"Kamioni za sabijanje sadržaja",null,null,null,{"$f":"D28*E28","v":0},null,{"$f":"F28*G28","v":0},null,{"$f":"H28+I28","v":0}]
[5,"Samoistovarni kamioni",null,null,null,{"$f":"D29*E29","v":0},null,{"$f":"F29*G29","v":0},null,{"$f":"H29+I29","v":0}]
[6,"Labudice",null,null,null,0,null,0,null,0]
[7,"Kontejnerski kamioni",null,null,null,0,null,0,null,0]
[8,"Kontejnerski kamioni",null,null,null,0,null,0,null,0]
[9,"Kamioni s bočnim punjenjem ",null,null,null,0,null,0,null,0]
[10,"Traktor i prikolica",null,null,null,0,null,0,null,0]
[11,"Ostali strojevi",null,null,null,{"$f":"D35*E35","v":0},null,{"$f":"F35*G35","v":0},null,0]
[null,"Ukupno oprema za prijevoz otpada",{"$f":"SUM(C25:C35)","v":0},{"$f":"SUM(D25:D35)","v":0},null,{"$f":"SUM(F25:F35)","v":0},null,{"$f":"SUM(H25:H35)","v":0},{"$f":"SUM(I25:I35)","v":0},{"$f":"SUM(J25:J35)","v":0}]
[null,"UKUPNO SKUPLJENI OTPAD",null,null,null,{"$f":"F24+F36","v":0},null,{"$f":"H24+H36","v":0},{"$f":"I24+I36","v":0},{"$f":"J24+J36","v":0}]
[null,"IME KOMUNALNOG PODUZEĆA ","1.1","2.1","3.1","4.1","5.1","6.1","7.1","8.1"]
[null,"Upravljanje otpadom, reciklaža, oporaba ","Postojeći broj jedinica u optjecaju","Planirana kupovina ","Cijena nove jedinice opreme kuna","Neophodne investicije kuna","Stopa amortizacije","Godišnja amortizacija","Troškovi servisiranja zaduženja (god)","Amortizacija i zaduženja (god)"]
[1,"Ispitivanja, dizajn, dozvole",null,null,null,{"$f":"D40*E40","v":0},null,{"$f":"F40*G40","v":0},null,{"$f":"H40+I40","v":0}]
[2,"Kupovina zemljišta",null,null,null,{"$f":"D41*E41","v":0},null,{"$f":"F41*G41","v":0},null,{"$f":"H41+I41","v":0}]
[3,"Instalacija strojeva",null,null,null,0,null,0,null,0]
[4,"Pokretna oprema",null,null,null,0,null,0,null,0]
[5,"Izgradnja",null,null,null,0,null,0,null,0]
[6,null,null,null,null,0,null,0,null,0]
[7,"Ostali troškovi ",null,null,null,0,null,0,null,{"$f":"H46+I46","v":0}]
[null,"Ukupno skupljanje otpada",{"$f":"SUM(C40:C46)","v":0},null,null,{"$f":"SUM(F40:F46)","v":0},null,{"$f":"SUM(H40:H46)","v":0},{"$f":"SUM(I40:I46)","v":0},{"$f":"SUM(J40:J46)","v":0}]
[null,"IME KOMUNALNOG PODUZEĆA ","1.2","2.2","3.2","4.2","5.2","6.2","7.2","8.2"]
[null,"Investicije u odlagalište","Postojeći broj jedinica u optjecaju","Planirana kupovina ","Cijena nove jedinice opreme kuna","Neophodne investicije kuna","Stopa amortizacije","Godišnja amortizacija","Troškovi servisiranja zaduženja (god)","Amortizacija i zaduženja (god)"]
[1,"Ispitivanja, dizajn, dozvole",null,null,null,0,null,0,null,0]
[2,"Kupovina zemljišta",null,null,null,0,null,0,null,0]
[3,"Instalacija strojeva",null,null,null,0,null,0,null,0]
[4,"Pokretna oprema",null,null,null,0,null,0,null,0]
[5,"Izgradnja",null,null,null,{"$f":"D54*E54","v":0},null,{"$f":"F54*G54","v":0},null,{"$f":"H54+I54","v":0}]
[6,null,null,null,null,{"$f":"D55*E55","v":0},null,{"$f":"F55*G55","v":0},null,{"$f":"H55+I55","v":0}]
[7,"Ostali troškovi",null,null,null,{"$f":"D56*E56","v":0},null,{"$f":"F56*G56","v":0},null,{"$f":"H56+I56","v":0}]
[null,"Ukupno odlagalište",{"$f":"SUM(C50:C56)","v":0},null,null,{"$f":"SUM(F50:F56)","v":0},null,{"$f":"SUM(H50:H56)","v":0},{"$f":"SUM(I50:I56)","v":0},{"$f":"SUM(J50:J56)","v":0}]
[null,"UKUPNO SKUPLJANJE I ODLAGANJE",null,null,null,{"$f":"F47+F57","v":0},null,{"$f":"H47+H57","v":0},{"$f":"I47+I57","v":0},{"$f":"J47+J57","v":0}]
[null,"SVEUKUPNA INVESTICIJA",null,null,null,{"$f":"SUM(F37,F58)","v":0},null,{"$f":"SUM(H37,H58)","v":0},{"$f":"SUM(I37,I58)","v":0},{"$f":"SUM(J37,J58)","v":0}]
[null,"CIJENA SKUPLJANJA, PRIJEVOZA I TRETMANA OTPADA I  ODLAGALIŠTA"]
[1,"Troškovi skupljanja i prijevoza god/kuna",{"$f":"'7. TROŠK. SKUPLJ. I PRIJEV.'!C14:D14","v":0},null,"Troškovi skupljanja, prijevoza i tretmana odlagališta kuna",{"$f":"C61","v":0}]
[2,"Procijenjeni dodatni godišnji troškovi za opremu za skupljanje ",{"$f":"J37","v":0},{"$f":"C62/$C$61","v":{"$error":"#DIV/0!"}},"Procijenjeni dodatni troškovi za sve kapitalne investicije ",{"$f":"J59","v":0}]
[3,"Procijenjeni godišnji porast troškova skupljanja i prijevoza kuna",null,{"$f":"C63/$C$61","v":{"$error":"#DIV/0!"}},"Ukupni procijenjeni godišnji porast operativnih troškova i tretmana odlagališta kuna"]
[4,"Procijenjeni godišnji porast troškova",{"$f":"SUM(C62:C63)","v":0},{"$f":"C64/$C$61","v":{"$error":"#DIV/0!"}},"Procijenjeni godišnji porast troškova",{"$f":"SUM(F62:F63)","v":0},{"$f":"F64/$F$61","v":{"$error":"#DIV/0!"}}]
[5,"Ukupni godišnji troškovi",{"$f":"SUM(C61:C63)","v":0},null,"Procijenjeni ukupni godišnji troškovi",{"$f":"SUM(F61:F63)","v":0}]
[6,"Troškovi skupljanja i prijevoza otpada kuna/t",{"$f":"'7. TROŠK. SKUPLJ. I PRIJEV.'!C25:D25","v":{"$error":"#DIV/0!"}},null,{"$f":"B67","v":"Procijenjeni troškovi skupljanja i prijevoza s porastom investicija u opremu kuna/t"},{"$f":"C67","v":{"$error":"#DIV/0!"}}]
[7,"Procijenjeni troškovi skupljanja i prijevoza s porastom investicija u opremu kuna/t",{"$f":"C66*(1+D64)","v":{"$error":"#DIV/0!"}},null,"Procijenjeni porast troškova investicija u recikliranje, oporabu i odlaganje skupljenog otpada kuna/tquantities in kuna/ton",{"$f":"F64/'2.  UKUPNI SKUPLJENI OTPAD'!H21","v":{"$error":"#DIV/0!"}}]
[8,"Procijenjeni porast troškova skupljanja i prijevoza kuna/t",{"$f":"C67-C66","v":{"$error":"#DIV/0!"}},{"$f":"C68/C66","v":{"$error":"#DIV/0!"}},"Procijenjeni ukupni troškovi skupljanja, prijevoza, tretmana i odlaganja otpada s porastom investicija kuna/t ",{"$f":"F67+F66","v":{"$error":"#DIV/0!"}},{"$f":"F68/$F$69","v":{"$error":"#DIV/0!"}}]
[null,null,null,null,{"$f":"B66","v":"Troškovi skupljanja i prijevoza otpada kuna/t"},{"$f":"C66","v":{"$error":"#DIV/0!"}}]
[null,null,null,null,"Procijenjeni porast troškova investicija u skupljanje, prijevoz, tretman i odlaganje skupljenog otpada kuna/t ",{"$f":"F68-F69","v":{"$error":"#DIV/0!"}},{"$f":"F70/$F$69","v":{"$error":"#DIV/0!"}}]
[]
[null,"POČETNA"]

{"sheet":"9, NARATIVNE INFORMACIJE ","index":9,"n_rows":175,"n_cols":8,"rows_kept":175,"cut":false,"hidden":false,"merged":[[174,1,176,1],[139,3,139,4],[140,3,140,4],[141,3,141,4],[143,3,143,4],[142,3,142,4],[165,3,165,4],[171,3,171,4],[145,3,145,4],[146,3,146,4],[147,3,147,4],[151,3,151,4],[152,3,152,4],[169,3,169,4],[170,3,170,4],[153,3,153,4],[57,2,57,4],[60,2,60,4],[134,3,134,4],[135,3,135,4],[132,3,132,4],[130,3,130,4],[62,2,62,4],[58,2,58,4],[137,3,137,4],[138,3,138,4],[144,3,144,4],[131,3,131,4],[133,3,133,4],[154,3,154,4],[155,3,155,4],[166,3,166,4],[167,3,167,4],[168,3,168,4],[26,2,26,4],[24,2,24,4],[29,4,29,5],[1,1,1,4],[0,1,0,4],[22,2,22,4]]}
[null,"NARATIVNE INFORMACIJE O UPRAVLJANJU KOMUNALNIM OTPADOM "]
[null,{"$f":"'2.  UKUPNI SKUPLJENI OTPAD'!B2:F2","v":"primjer"}]
[1,"Razina skupljanja informacija",null,"DA","NE"]
[null,null,"Općina"]
[null,null,"Grad"]
[null,null,"Županija"]
[]
[2,"Tip skupljanja",null,"DA","NE"]
[null,null,"Traditional"]
[null,null,"Separirane frakcije otpada"]
[null,null,"Separirani krupni otpad"]
[]
[3,"Procesi ",null,"DA","NE"]
[null,null,"Organizirani "]
[null,null,"Neorganizirani"]
[]
[4,"Lokacija organiziranog odvajanja",null,"DA","NE"]
[null,null,"Kuća"]
[null,null,"Ulica"]
[null,null,"Odlagalište"]
[null,null,"Ostalo"]
[]
[5,"Ime i adresa javnog komunalnog poduzeća "]
[]
[6,"Ime odgovorne osobe"]
[]
[7,"Posljednji datum upisa"]
[]
[]
[8,"KOLIČINA SKUPLJENOG OTPADA - Lokalno komunalno poduzeće koje skuplja i prevozi otpad","Oprema za skupljanje komunalnog otpada i prijevoz na odlagališta","TIP","Kapacitet u m³/t",null,"BROJ"]
[null,null,"Kamioni s rotirajućim mehanizmom"]
[null,null,"Kamioni za sabijanje sadržaja"]
[null,null,"Otvoreni kamioni"]
[null,null,"Traktori"]
[null,null,"Ostalo"]
[null,null,"Kontejneri za reciklažu "]
[null,null,"Kontejneri 5 t"]
[null,null,"Ostalo"]
[null,null,"Kontejneri za reciklažu",null,null,null,"BROJ","m³"]
[null,null,"Kontejneri na kotačima 3,5m³",null,null,null,null,{"$f":"G40*E40","v":0}]
[null,null,"Kontejneri na kotačima 5 m³",null,null,null,null,{"$f":"G41*E41","v":0}]
[null,null,"Kontejneri na kotačima 7 m³",null,null,null,null,0]
[null,null,"Kontejneri na podizanje 2,5m³",null,null,null,null,0]
[null,null,"Kontejneri na podizanje 5 m³",null,null,null,null,0]
[null,null,"Kontejneri na podizanje 10 m³",null,null,null,null,0]
[null,null,"Kontejneri na podizanje 25 m³",null,null,null,null,0]
[null,null,"Kontejneri na podizanje 35 m³",null,null,null,null,0]
[null,null,"Kontejneri 1.100 l",null,null,null,null,0]
[null,null,"Kontejneri 660 l",null,null,null,null,0]
[null,null,"Kontejneri 770 l",null,null,null,null,0]
[null,null,"Kante 120 l",null,null,null,null,0]
[null,null,"Kante 240 l",null,null,null,null,0]
[null,null,"Vreće",null,null,null,null,0]
[null,null,"Ostalo",null,null,null,null,0]
[null,null,"Zbroj skupljenog otpada, volumen u m3",null,null,null,{"$f":"SUM(G40:G54)","v":0},{"$f":"SUM(H40:H54)","v":0}]
[]
[]
[9,"Lokacija odlagališta – općina i ime lokacije, zemljopisne koordinate"]
[null,"Početna godina odlaganja komunalnog otpada"]
[]
[10,"Općine koje su osnovale odlagalište za komunalni otpad "]
[]
[11,"Ime i adresa operatera odlagališta"]
[]
[12,"Odlagalište - podaci ",null,"YES","NO"]
[null,null,"EU usklađen"]
[null,null,"Tradicionalno odlagalište"]
[null,"Odlagalište  - vlasništvo","Javno"]
[null,null,"Privatno"]
[null,null,"  Miješano"]
[null,"Odlagalište - pravni status ","S dozvolom"]
[null,null,"Bez dozvole "]
[null,null,"Izuzeci"]
[null,null,"Predloženo"]
[null,null,"Ilegalno"]
[null,"Odlagalište - operativni status ","Planirano"]
[null,null,"U izgradnji"]
[null,null,"Aktivno"]
[null,null,"Neaktivno"]
[null,null,"Oporavak u tijeku"]
[null,null,"Zatvara se"]
[null,null,"Zatvoreno"]
[null,null,"Zatvoreno i očišćeno"]
[null,null,"Uništeno"]
[null,"Odlagalište - tip operatera","Savezni"]
[null,null,"Državni"]
[null,null,"Županijski"]
[null,null,"Gradski"]
[null,null,"Općinski"]
[null,null,"Privatni"]
[null,null,"Lokalni"]
[null,"Infrastruktura na odlagalištu","Prilazna cesta"]
[null,null,"Unutarnji putevi"]
[null,null,"Voda"]
[null,null,"Kanalizacija"]
[null,null,"Struja"]
[null,null,"Skupljanje plina"]
[null,null,"Teretni most"]
[null,null,"Oprema za pranje vozila"]
[null,"Mechanization at disposal sites","Buldožeri"]
[null,null,"Sabijači"]
[null,null,"Ostalo - navesti"]
[null,"Oprema za zaštitu okoliša na odlagalištu","Odvodi"]
[null,null,"Površinski kanali za vodu"]
[null,null,"Skupljanje vode koja otiče"]
[null,null,"Sustav očišćenja vode"]
[null,null,"Sabijanje i prekrivanje"]
[null,null,"Dezinfekcija, deratizacija"]
[null,null,"Ostalo"]
[null,"Tip odloženog otpada i tehnoloških tretmana na odlagalištima","Dozvoljeni tipovi otpada za odlaganje bez tretmana"]
[null,null,"Metali "]
[null,null,"Otpad od pakiranja"]
[null,null,"Poljoprivredni otpad"]
[null,null,"Građevinski otpad"]
[null,null,"Elektronički otpad"]
[null,null,"Opasni otpad iz kućanstava"]
[null,null,"Medicinski otpad"]
[null,null,"Životinjski otpad"]
[null,null,"Pepeo i mulj"]
[null,null,"Gume"]
[null,null,"Otpad prekriven nezapaljivim materijalima "]
[null,null,"Separacija na odlagalištu"]
[null,null,"Oporaba otpada / mogućnosti procesuiranja"]
[null,null,"Uvjeti reciklaže"]
[null,null,"Uvjeti kompostiranja"]
[null,null,"Reciklaža plinom"]
[null,null,"Spaljivanje"]
[null,null,"Kombinirani tretman"]
[null,null,"Ostalo - navesti"]
[]
[null,"Veličina odlagališta","Dužina u metrima"]
[null,null,"Širina u metrima"]
[null,null,"Površina u m2"]
[null,null,"Volumen u m3"]
[null,null,"Ukupni kapacitet odlagališta u m3"]
[null,null,"Iskorišteni kapacitet odlagališta do 2010. u m3"]
[]
[null,"Udaljenost odlagališta u metrima od ","Naseljenih mjesta"]
[null,null,"Potoka, rijeka, jezera"]
[null,null,"Izvora vode"]
[null,null,"Domova zdravlja ili bolnica"]
[null,null,"Proizvodnje hrane "]
[null,null,"Podzemne infrastrukture "]
[null,null,"Plinovoda ili naftovoda"]
[null,null,"Autobusne ili željezničke postaje"]
[null,null,"Zrakplovne luke"]
[null,null,"Sklad. zapaljivih materijala"]
[null,null,"Zaštićenih područja"]
[]
[]
[null,"Financiranje skupljanja i prijevoza "]
[null,null,"Naplata od korisnika  – cjenik (specificirano za kućanstva, po glavi stanovnika, kg/t ili m2 u kuna)"]
[null,null,"Naplata od korisnika - cjenik (specificirano za industriju i trgovinu,  kg/t, m2 ili drugo u kuna)"]
[null,null,"Odvojeno za skupljanje i prijevoz za m3 ili kg/t u kuna"]
[null,null,"Odvojeno za odlaganje na odlagalištu za m3 ili kg/t u kuna"]
[null,null,"Jedinstvena naplata za skupljanje i odlaganje za m3 ili kg/t u kuna"]
[]
[13,"Puna cijena za skupljanje i prijevoz do odlagališta ",null,"DA","NE"]
[null,null,"Cijena pokriva operativne troškove "]
[null,null,"Cijene pokrivaju troškove i amortizaciju "]
[null,null,"Cijena pokriva troškove i kreditne obveze "]
[null,"Dragovoljna cijena za odlaganje na odlagalištu","Cijena pokriva operativne troškove"]
[null,null,"Cijena pokriva troškove i amortizaciju "]
[null,null,"Cijena pokriva troškove i kreditne obveze "]
[]
[14,"Financiranje investicija","Fond za okoliš"]
[null,"Lokalni plan za financiranje kontoliranog odlagališta ili upravljanja otpadom, apsolutne brojke u 000 kuna ili % vrijednosti investicije  ","Strane donacije"]
[null,null,"Državne potpore"]
[null,null,"Općinski proračun "]
[null,null,"Izravne posudbe"]
[null,null,"Investicije ili participacije privatnog sektora"]
[null,null,"Ukupno",{"$f":"SUM(D166:E171)","v":0}]
[]
[]
[null,"POČETNA"]